bitfinex-derivatives/quotes_BTCF0:USTF0_20250806
["timestamp","ask_amount","ask_price","bid_price","bid_amount"]
[1754466022749,0.80500383,114230.0,114220.0,1.02610128]
[1754466023048,0.80500383,114230.0,114220.0,1.03962128]
[1754466027259,0.80500383,114230.0,114220.0,1.06365128]
[1754466027555,0.80500383,114230.0,114220.0,0.35279128]
[1754466027858,1.31702416,114230.0,114220.0,0.8183585]
[1754466028255,0.80500383,114230.0,114220.0,0.8183585]
[1754466031059,1.31702416,114230.0,114220.0,0.002]
[1754466032359,1.31702416,114230.0,114220.0,0.1771186]
[1754466035874,1.31702416,114230.0,114220.0,0.2713686]
[1754466036177,0.80500383,114230.0,114220.0,0.2713686]
[1754466036766,1.31702416,114230.0,114220.0,0.2713686]
[1754466037172,1.31702416,114230.0,114220.0,0.2578486]
[1754466038866,1.31702416,114230.0,114220.0,0.08273]
[1754466040078,1.31702416,114230.0,114220.0,0.2578486]
[1754466040284,0.80500383,114230.0,114220.0,0.2578486]
[1754466040476,0.80500383,114230.0,114220.0,0.2713686]
[1754466040774,1.41140383,114230.0,114220.0,0.2953986]
[1754466040977,0.80500383,114230.0,114220.0,0.2953986]
[1754466042481,0.80500383,114230.0,114220.0,0.9017986]
[1754466042783,0.74856684,114230.0,114220.0,0.9017986]
[1754466043681,0.74856684,114230.0,114220.0,0.91095267]
[1754466044080,0.74856684,114230.0,114220.0,0.9017986]
[1754466046383,0.74856684,114230.0,114220.0,0.8777686]
[1754466048685,0.74856684,114230.0,114220.0,0.1771188]
[1754466051586,0.74856684,114230.0,114220.0,0.002]
[1754466052682,1.35476684,114230.0,114220.0,0.002]
[1754466053182,0.74856684,114230.0,114220.0,0.002]
[1754466053381,1.35472684,114230.0,114220.0,0.002]
[1754466053584,0.2941939,114210.0,114200.0,1.16692729]
[1754466053781,0.74977724,114210.0,114200.0,1.16692729]
[1754466053981,0.74977724,114210.0,114200.0,0.9635781]
[1754466054797,0.74977724,114210.0,114200.0,0.9685781]
[1754466055896,0.74977724,114210.0,114200.0,1.03903693]
[1754466057181,0.74977724,114210.0,114200.0,0.37090693]
[1754466057593,0.74977724,114210.0,114200.0,0.43291693]
[1754466057789,2.11142668,114210.0,114170.0,0.20334919]
[1754466057998,0.74982324,114180.0,114170.0,0.32268919]
[1754466058392,0.74982324,114180.0,114170.0,0.11934]
[1754466059096,0.74982324,114180.0,114170.0,0.12534]
[1754466059490,0.74982324,114180.0,114170.0,0.12934]
[1754466060693,0.2942399,114180.0,114170.0,0.12434]
[1754466060883,0.72719324,114180.0,114170.0,0.299535]
[1754466061189,0.74982324,114180.0,114170.0,0.12434]
[1754466061394,0.75182324,114180.0,114170.0,0.12434]
[1754466061796,0.75182324,114180.0,114170.0,0.12034]
[1754466061998,0.75182324,114180.0,114170.0,0.295535]
[1754466063086,0.72919324,114180.0,114170.0,0.295535]
[1754466063295,0.75182324,114180.0,114170.0,0.295535]
[1754466063696,0.2962399,114180.0,114170.0,0.295535]
[1754466063896,0.68099324,114180.0,114170.0,0.295535]
[1754466064096,0.72884324,114180.0,114170.0,0.295535]
[1754466064498,0.75182324,114180.0,114170.0,0.295535]
[1754466067497,0.63276324,114180.0,114170.0,0.295535]
[1754466067695,0.002,114180.0,114170.0,0.595535]
[1754466067899,0.002,114180.0,114170.0,1.83236634]
[1754466069905,0.002,114180.0,114170.0,1.376783]
[1754466070793,0.002,114180.0,114170.0,1.83236634]
[1754466071098,0.51453024,114200.0,114190.0,0.2945045]
[1754466071398,0.51453024,114200.0,114190.0,0.9005045]
[1754466072193,0.47073914,114200.0,114190.0,0.9005045]
[1754466072392,0.24735774,114200.0,114190.0,0.9005045]
[1754466072594,0.72274284,114210.0,114200.0,0.2944891]
[1754466073109,0.45558334,114210.0,114200.0,0.30359377]
[1754466073297,0.83419106,114220.0,114210.0,0.2059138]
[1754466073490,0.87256106,114220.0,114210.0,0.9004338]
[1754466073695,0.86343804,114220.0,114210.0,0.9004338]
[1754466073896,0.84104804,114220.0,114210.0,0.9004338]
[1754466074197,0.86343804,114220.0,114210.0,0.9004338]
[1754466074396,0.81965544,114220.0,114210.0,0.9004338]
[1754466074905,0.82265544,114220.0,114210.0,0.9004338]
[1754466076006,0.82565544,114220.0,114210.0,0.9004338]
[1754466078992,0.82565544,114220.0,114210.0,0.1751338]
[1754466079193,0.82565544,114220.0,114210.0,0.7810138]
[1754466079400,0.82565544,114220.0,114210.0,0.1751338]
[1754466079701,0.2226638,114210.0,114200.0,0.2872983]
[1754466080000,0.73216714,114210.0,114200.0,0.8930983]
[1754466080203,0.73216714,114210.0,114200.0,0.9327783]
[1754466080397,0.00972,114210.0,114200.0,0.9891483]
[1754466080602,0.45558334,114210.0,114200.0,0.9891483]
[1754466080904,0.45758334,114210.0,114200.0,0.9891483]
[1754466081501,0.45958334,114210.0,114200.0,0.9891483]
[1754466081905,0.45758334,114210.0,114200.0,0.9891483]
[1754466082106,0.002,114210.0,114200.0,0.9891483]
[1754466082899,0.45758334,114210.0,114200.0,0.9891483]
[1754466083306,0.002,114210.0,114200.0,0.9891483]
[1754466083507,0.002,114210.0,114200.0,1.44473164]
[1754466083911,0.002,114210.0,114200.0,0.9891483]
[1754466084706,0.001,114210.0,114200.0,0.9891483]
[1754466088210,0.63070364,114220.0,114210.0,0.2241736]
[1754466088410,0.63070364,114220.0,114210.0,0.2959936]
[1754466089603,0.67295364,114220.0,114210.0,0.2959936]
[1754466089809,0.67395364,114220.0,114210.0,0.2959936]
[1754466090009,0.68994364,114220.0,114210.0,0.2959936]
[1754466091112,0.71176364,114220.0,114210.0,0.2959936]
[1754466091510,0.73415364,114220.0,114210.0,0.2959936]
[1754466093508,0.73415364,114220.0,114210.0,0.1999436]
[1754466093716,0.73415364,114220.0,114210.0,0.2806936]
[1754466093914,0.73415364,114220.0,114210.0,0.2959936]
[1754466094615,0.67395364,114220.0,114210.0,0.2959936]
[1754466094815,0.71176364,114220.0,114210.0,0.2959936]
[1754466096417,0.1771203,114220.0,114210.0,0.2959936]
[1754466096722,0.1868403,114220.0,114210.0,0.2959936]
[1754466096911,0.2029703,114220.0,114210.0,0.2959936]
[1754466097110,0.68994364,114220.0,114210.0,0.2959936]
[1754466097717,0.71176364,114220.0,114210.0,0.2959936]
[1754466098920,0.53664334,114220.0,114210.0,0.2959936]
[1754466100921,0.71176174,114220.0,114210.0,0.2959936]
[1754466101120,0.73415174,114220.0,114210.0,0.2959936]
[1754466104027,0.71176174,114220.0,114210.0,0.2396236]
[1754466104324,0.73415174,114220.0,114210.0,0.2959936]
[1754466106725,0.71176174,114220.0,114210.0,0.2959936]
[1754466107226,0.73415174,114220.0,114210.0,0.2959936]
[1754466112526,0.73415174,114220.0,114210.0,0.1751336]
[1754466112828,0.73415174,114220.0,114210.0,0.1978236]
[1754466113220,0.73415174,114220.0,114210.0,0.2782236]
[1754466113419,0.73415174,114220.0,114210.0,0.2922736]
[1754466117140,0.73415174,114220.0,114210.0,0.2782236]
[1754466118032,0.73415174,114220.0,114210.0,0.1751336]
[1754466118237,0.73415174,114220.0,114210.0,0.60508]
[1754466118537,0.73415174,114220.0,114210.0,0.7802138]
[1754466120446,0.73415174,114220.0,114210.0,0.8734938]
[1754466120743,0.73415174,114220.0,114210.0,0.8973538]
[1754466121648,0.2785684,114220.0,114210.0,0.8973538]
[1754466121837,0.73415174,114220.0,114210.0,0.8973538]
[1754466124038,0.71176174,114220.0,114210.0,0.8973538]
[1754466125949,0.2028284,114220.0,114210.0,0.8973538]
[1754466126246,0.2331884,114220.0,114210.0,0.8973538]
[1754466127150,0.2558084,114220.0,114210.0,0.8973538]
[1754466128645,0.71139174,114220.0,114210.0,0.8973538]
[1754466132350,0.68103174,114220.0,114210.0,0.8973538]
[1754466132648,0.71139174,114220.0,114210.0,0.8973538]
[1754466139753,0.68877174,114220.0,114210.0,0.8973538]
[1754466139947,0.67264174,114220.0,114210.0,0.8973538]
[1754466140345,0.51365334,114220.0,114210.0,0.8973538]
[1754466140546,0.68877174,114220.0,114210.0,0.8973538]
[1754466141151,0.71156174,114220.0,114210.0,0.8973538]
[1754466143844,0.08086,114220.0,114210.0,0.8973538]
[1754466144351,0.2559784,114220.0,114210.0,0.8973538]
[1754466144750,0.1868384,114220.0,114210.0,0.8973538]
[1754466145152,0.2167984,114220.0,114210.0,0.8973538]
[1754466145353,0.2333984,114220.0,114210.0,0.8973538]
[1754466146156,0.2561884,114220.0,114210.0,0.8973538]
[1754466146656,0.71177174,114220.0,114210.0,0.8973538]
[1754466146954,0.73416174,114220.0,114210.0,0.8973538]
[1754466148557,0.73416174,114220.0,114210.0,0.8980638]
[1754466149760,0.71177174,114220.0,114210.0,0.8980638]
[1754466155660,0.002,114220.0,114210.0,1.35364714]
[1754466156661,0.51450963,114220.0,114210.0,1.41057343]
[1754466158667,0.002,114220.0,114210.0,0.8980638]
[1754466164069,0.002,114220.0,114210.0,1.35364661]
[1754466164269,0.02593,114240.0,114230.0,0.2936131]
[1754466164466,0.75311571,114250.0,114240.0,0.2935977]
[1754466165368,0.77550571,114250.0,114240.0,0.2935977]
[1754466166069,0.47874281,114250.0,114240.0,0.2935977]
[1754466166275,0.68654531,114250.0,114240.0,0.2935977]
[1754466166469,0.71133531,114250.0,114240.0,0.2935977]
[1754466166871,0.71133531,114250.0,114240.0,0.3628273]
[1754466167075,0.2557525,114250.0,114240.0,0.3628273]
[1754466167278,0.71133531,114250.0,114240.0,0.3628273]
[1754466167777,0.71233531,114250.0,114240.0,0.3628273]
[1754466168078,0.53726281,114250.0,114240.0,0.3628273]
[1754466168479,0.2567525,114250.0,114240.0,0.3628273]
[1754466168682,0.71233531,114250.0,114240.0,0.3628273]
[1754466170383,0.08168,114250.0,114240.0,0.3628273]
[1754466170976,0.01233,114250.0,114240.0,0.3628273]
[1754466171172,0.04305,114250.0,114240.0,0.3628273]
[1754466171377,0.05926,114250.0,114240.0,0.3628273]
[1754466174281,0.71142531,114250.0,114240.0,0.3628273]
[1754466174485,0.73381531,114250.0,114240.0,0.3628273]
[1754466175691,0.73381531,114250.0,114240.0,0.9103373]
[1754466175887,0.73381531,114250.0,114240.0,0.8483173]
[1754466176084,0.73381531,114250.0,114240.0,0.8715273]
[1754466176990,0.73381531,114250.0,114240.0,0.9058473]
[1754466177195,0.73381531,114250.0,114240.0,0.9446073]
[1754466178593,0.73381531,114250.0,114240.0,0.9540073]
[1754466179295,0.73381531,114250.0,114240.0,0.9681873]
[1754466179694,0.73381531,114250.0,114240.0,0.9681473]
[1754466180695,0.73381531,114250.0,114240.0,0.3156873]
[1754466180994,0.73381531,114250.0,114240.0,0.8869273]
[1754466181694,0.73381531,114250.0,114240.0,0.2443173]
[1754466182490,0.73381531,114250.0,114240.0,0.2675273]
[1754466183690,0.73381531,114250.0,114240.0,0.3500073]
[1754466183896,0.73381531,114250.0,114240.0,0.3641873]
[1754466186290,0.73381531,114250.0,114240.0,0.2443173]
[1754466186496,0.73381531,114250.0,114240.0,0.0692296]
[1754466186696,0.1750878,114240.0,114230.0,1.00136868]
[1754466186897,0.73149061,114240.0,114230.0,1.03568868]
[1754466187096,0.73149061,114240.0,114230.0,1.04986868]
[1754466188003,0.73249061,114240.0,114230.0,1.04986868]
[1754466189107,0.2769078,114240.0,114230.0,1.04986868]
[1754466189306,0.73249061,114240.0,114230.0,1.04986868]
[1754466190309,0.2769078,114240.0,114230.0,1.04986868]
[1754466190606,0.73249061,114240.0,114230.0,1.11920948]
[1754466195109,1.18807342,114240.0,114230.0,0.98776958]
[1754466195310,0.73249061,114240.0,114230.0,0.98776958]
[1754466195812,0.73249061,114240.0,114230.0,0.38404958]
[1754466196114,0.71010061,114240.0,114230.0,0.98772958]
[1754466196412,0.73249061,114240.0,114230.0,0.98772958]
[1754466196901,0.73249061,114240.0,114230.0,0.97354958]
[1754466197104,0.73249061,114240.0,114230.0,0.36986958]
[1754466197311,0.73249061,114240.0,114230.0,0.98772958]
[1754466198413,0.73249061,114240.0,114230.0,0.38404958]
[1754466198612,0.73249061,114240.0,114230.0,0.98772958]
[1754466201910,0.71010061,114240.0,114230.0,0.98772958]
[1754466202113,0.73249061,114240.0,114230.0,0.98772958]
[1754466208219,0.73249061,114240.0,114230.0,0.98760958]
[1754466208817,1.30195864,114240.0,114230.0,0.98760958]
[1754466209914,0.2769078,114240.0,114230.0,0.98760958]
[1754466210219,1.30195864,114240.0,114230.0,0.98760958]
[1754466214419,1.27956864,114240.0,114230.0,0.33554958]
[1754466214619,1.30195864,114240.0,114230.0,0.98707958]
[1754466222633,1.24884864,114240.0,114230.0,0.98707958]
[1754466222833,1.27887864,114240.0,114230.0,0.98707958]
[1754466228239,1.30126864,114240.0,114230.0,0.98707958]
[1754466240346,1.30126864,114240.0,114230.0,0.967334]
[1754466251064,0.68861322,114240.0,114230.0,1.47985942]
[1754466251766,0.1760878,114240.0,114230.0,1.47985942]
[1754466251966,0.68861322,114240.0,114230.0,1.47985942]
[1754466252167,0.68861322,114240.0,114230.0,0.967334]
[1754466252356,0.71279322,114240.0,114230.0,0.967334]
[1754466252667,0.74468322,114240.0,114230.0,0.967334]
[1754466253067,0.2321578,114240.0,114230.0,0.967334]
[1754466253264,0.74468322,114240.0,114230.0,0.967334]
[1754466256570,0.76772322,114240.0,114230.0,0.967334]
[1754466257469,1.28024864,114240.0,114230.0,0.967334]
[1754466259972,0.76772322,114240.0,114230.0,0.967334]
[1754466260971,0.74468322,114240.0,114230.0,1.47985942]
[1754466265372,0.74468322,114240.0,114230.0,0.967334]
[1754466265878,0.74468322,114240.0,114230.0,1.47985942]
[1754466266874,0.74468322,114240.0,114230.0,0.967334]
[1754466267370,0.001,114240.0,114230.0,1.49786173]
[1754466269175,0.83084642,114250.0,114240.0,0.1750878]
[1754466269473,0.85315642,114250.0,114240.0,0.2955478]
[1754466270075,0.87554642,114250.0,114240.0,0.2955478]
[1754466270274,0.87554642,114250.0,114240.0,0.2809078]
[1754466270476,0.87554642,114250.0,114240.0,0.2955478]
[1754466271265,1.38807184,114250.0,114240.0,0.2955478]
[1754466271471,0.87654642,114250.0,114240.0,0.2955478]
[1754466272177,0.87854642,114250.0,114240.0,0.2955478]
[1754466273381,1.39107184,114250.0,114240.0,0.1993878]
[1754466273775,0.87854642,114250.0,114240.0,0.1993878]
[1754466274176,0.87854642,114250.0,114240.0,0.2712078]
[1754466277076,0.87854642,114250.0,114240.0,0.2809078]
[1754466278181,0.87854642,114250.0,114240.0,0.2955478]
[1754466280582,1.39107184,114250.0,114240.0,0.2955478]
[1754466280881,1.39107184,114250.0,114240.0,0.2809078]
[1754466281082,1.39107184,114250.0,114240.0,0.1993878]
[1754466281781,0.366021,114250.0,114240.0,0.1993878]
[1754466282184,1.39107184,114250.0,114240.0,0.1993878]
[1754466282585,1.39107184,114250.0,114240.0,0.2312878]
[1754466283180,1.39107184,114250.0,114240.0,0.2712078]
[1754466284285,0.87854642,114250.0,114240.0,0.2809078]
[1754466284484,0.87854642,114250.0,114240.0,0.2955478]
[1754466292101,0.366021,114250.0,114240.0,0.2955478]
[1754466292304,0.87854642,114250.0,114240.0,0.2955478]
[1754466300907,0.87854642,114250.0,114230.0,0.13762311]
[1754466300908,0.200618,114240.0,114230.0,0.13762311]
[1754466301202,1.90232884,114240.0,114230.0,0.08734311]
[1754466301410,1.90232884,114240.0,114230.0,0.01800231]
[1754466301597,1.90232884,114240.0,114230.0,0.19310561]
[1754466301995,1.90232884,114240.0,114230.0,0.21794561]
[1754466302196,1.90332884,114240.0,114230.0,0.21794561]
[1754466303399,1.90532884,114240.0,114230.0,0.21794561]
[1754466304210,1.90432884,114240.0,114230.0,0.21794561]
[1754466304411,1.90732884,114240.0,114230.0,0.21794561]
[1754466305411,1.90732884,114240.0,114230.0,0.25016561]
[1754466306606,1.28289884,114240.0,114230.0,0.21794561]
[1754466306911,1.90728884,114240.0,114230.0,0.31092561]
[1754466308613,0.881238,114240.0,114230.0,0.31092561]
[1754466308812,1.90628884,114240.0,114230.0,0.31092561]
[1754466310000,1.90528884,114240.0,114230.0,0.31092561]
[1754466310612,1.30328884,114240.0,114230.0,0.31092561]
[1754466311309,1.28089884,114240.0,114230.0,0.29740561]
[1754466311514,1.28089884,114240.0,114230.0,0.31092561]
[1754466311715,1.30328884,114240.0,114230.0,0.31092561]
[1754466314310,1.30328884,114240.0,114230.0,0.29740541]
[1754466315613,1.30328884,114240.0,114230.0,0.31092541]
[1754466319913,0.278238,114240.0,114230.0,0.31092541]
[1754466320113,1.30328884,114240.0,114230.0,0.31092541]
[1754466321618,1.30328884,114240.0,114230.0,0.29740541]
[1754466323822,1.30328884,114240.0,114230.0,0.26518541]
[1754466324522,1.30328884,114240.0,114230.0,0.29859541]
[1754466327623,0.278238,114240.0,114230.0,0.31346541]
[1754466327919,1.30328884,114240.0,114230.0,0.31346541]
[1754466328723,1.30328884,114240.0,114230.0,0.29859541]
[1754466329023,1.30328884,114240.0,114230.0,0.31346541]
[1754466331722,1.30328884,114240.0,114230.0,0.29859541]
[1754466340927,1.30328884,114240.0,114230.0,0.21808541]
[1754466341524,1.30328884,114240.0,114230.0,0.25149541]
[1754466345131,1.30328884,114240.0,114230.0,0.21808541]
[1754466351631,1.30328884,114240.0,114230.0,0.25078541]
[1754466352639,1.30328884,114240.0,114230.0,0.07568231]
[1754466353036,1.30328884,114240.0,114230.0,0.04298231]
[1754466353238,1.30328884,114240.0,114230.0,0.21808541]
[1754466354138,1.30328884,114240.0,114230.0,0.25078541]
[1754466354340,1.30328884,114240.0,114230.0,0.31376541]
[1754466359042,1.30328884,114240.0,114230.0,0.29894541]
[1754466359743,1.90456884,114240.0,114230.0,0.29894541]
[1754466362748,1.90456884,114240.0,114230.0,0.25633541]
[1754466363546,1.30328884,114240.0,114230.0,0.25633541]
[1754466363747,1.30328884,114240.0,114230.0,0.31376541]
[1754466364547,1.30328884,114240.0,114220.0,0.3505869]
[1754466364548,0.2758732,114230.0,114220.0,0.3505869]
[1754466364750,0.78839862,114230.0,114220.0,0.3505869]
[1754466365048,0.78839862,114230.0,114220.0,0.3654069]
[1754466365849,0.78939862,114230.0,114220.0,0.3654069]
[1754466366151,0.2768732,114230.0,114220.0,0.3654069]
[1754466366349,0.78939862,114230.0,114220.0,0.3654069]
[1754466366548,0.79039862,114230.0,114220.0,0.98420323]
[1754466366749,0.76800862,114230.0,114220.0,0.98420323]
[1754466366947,0.76900862,114230.0,114220.0,0.89552865]
[1754466367150,0.76900862,114230.0,114220.0,0.98420323]
[1754466367553,0.69062862,114230.0,114220.0,0.98420323]
[1754466367747,0.69062862,114230.0,114220.0,1.49672865]
[1754466367949,0.1878132,114230.0,114220.0,1.49672865]
[1754466368250,0.70033862,114230.0,114220.0,1.49672865]
[1754466368952,0.69933862,114230.0,114220.0,1.49672865]
[1754466369259,0.52323542,114230.0,114220.0,1.49672865]
[1754466369450,0.001,114230.0,114220.0,1.49672865]
[1754466370351,0.51352542,114230.0,114220.0,1.49672865]
[1754466370954,0.001,114230.0,114220.0,1.49672865]
[1754466371659,0.68862852,114230.0,114220.0,1.49672865]
[1754466372362,0.68862852,114230.0,114220.0,0.98420323]
[1754466372658,0.68862852,114230.0,114220.0,1.49672865]
[1754466372848,0.68762852,114230.0,114220.0,1.49672865]
[1754466373051,0.68762852,114230.0,114220.0,1.49772865]
[1754466376871,0.68762852,114230.0,114220.0,0.98520323]
[1754466377071,0.69733852,114230.0,114220.0,1.49772865]
[1754466377369,0.72735852,114230.0,114220.0,1.49772865]
[1754466379363,0.2424754,114240.0,114230.0,0.2936631]
[1754466379669,0.78651082,114240.0,114230.0,0.80618852]
[1754466380167,0.80909082,114240.0,114230.0,0.2936631]
[1754466381865,0.81009082,114240.0,114230.0,0.2936631]
[1754466383969,0.83248082,114240.0,114230.0,0.2936631]
[1754466385776,1.34500624,114240.0,114230.0,0.2936631]
[1754466386378,0.81086082,114240.0,114230.0,0.2936631]
[1754466386881,0.83325082,114240.0,114230.0,0.2936631]
[1754466387778,1.34577624,114240.0,114230.0,0.2936631]
[1754466389876,0.83325082,114240.0,114230.0,0.2936631]
[1754466391181,0.2769508,114240.0,114230.0,0.2936631]
[1754466391376,0.76708622,114240.0,114230.0,0.80618852]
[1754466392082,0.76708622,114240.0,114230.0,0.2936631]
[1754466392275,0.78947622,114240.0,114230.0,0.2936631]
[1754466395181,1.30200164,114240.0,114230.0,0.2936631]
[1754466395382,1.30200164,114240.0,114230.0,0.1751031]
[1754466396084,1.30200164,114240.0,114230.0,0.1998831]
[1754466396581,1.30200164,114240.0,114230.0,0.1751031]
[1754466396883,1.30200164,114240.0,114230.0,0.7760231]
[1754466397485,1.30200164,114240.0,114230.0,0.1751031]
[1754466397785,1.30200164,114240.0,114230.0,0.7760231]
[1754466399992,1.30200164,114240.0,114230.0,0.8008031]
[1754466405481,1.30200164,114240.0,114230.0,0.1751031]
[1754466405687,0.2768231,114230.0,114220.0,0.50289233]
[1754466405880,0.78934852,114230.0,114220.0,1.10377233]
[1754466406484,0.78934852,114230.0,114220.0,1.11789233]
[1754466409293,0.79234852,114230.0,114220.0,1.11789233]
[1754466409793,0.79234852,114230.0,114220.0,0.979046]
[1754466410095,0.79434852,114230.0,114220.0,1.094836]
[1754466420901,0.77195852,114230.0,114220.0,0.3626245]
[1754466421102,0.79434852,114230.0,114220.0,0.9634245]
[1754466423305,0.79434852,114230.0,114220.0,0.7743184]
[1754466423508,1.30687394,114230.0,114220.0,0.6008]
[1754466423707,0.79434852,114230.0,114220.0,0.62339]
[1754466424106,0.2754784,114220.0,114210.0,0.77195891]
[1754466424300,1.30052924,114220.0,114210.0,0.96109271]
[1754466425511,0.79000382,114220.0,114210.0,0.96109271]
[1754466426405,0.79200382,114220.0,114210.0,0.96109271]
[1754466427507,0.79200382,114220.0,114210.0,0.36033271]
[1754466427706,0.79200382,114220.0,114210.0,0.96109271]
[1754466428609,0.80080917,114220.0,114210.0,0.96109271]
[1754466429705,0.79980917,114220.0,114210.0,0.96109271]
[1754466429905,0.80380917,114220.0,114210.0,0.96109271]
[1754466434915,0.29128375,114220.0,114210.0,0.96109271]
[1754466435215,0.78141917,114220.0,114210.0,0.96109271]
[1754466446822,0.80380917,114220.0,114210.0,0.96109271]
[1754466450029,0.78141917,114220.0,114210.0,0.96109271]
[1754466450230,0.70344917,114220.0,114210.0,0.96109271]
[1754466450419,0.74300917,114220.0,114210.0,0.96109271]
[1754466450624,0.75830917,114220.0,114210.0,0.96109271]
[1754466450923,0.77957917,114220.0,114210.0,0.96109271]
[1754466453725,0.2582484,114220.0,114210.0,0.96109271]
[1754466453923,0.77077382,114220.0,114210.0,0.96109271]
[1754466454331,0.76677382,114220.0,114210.0,0.96109271]
[1754466454533,0.76877382,114220.0,114210.0,0.96109271]
[1754466456135,0.005,114220.0,114210.0,1.47361813]
[1754466456538,0.51752542,114220.0,114210.0,1.47361813]
[1754466458032,0.51452542,114220.0,114210.0,1.47361813]
[1754466459640,0.002,114220.0,114210.0,1.47361813]
[1754466459833,0.51452542,114220.0,114210.0,1.47361813]
[1754466460141,0.51352542,114220.0,114210.0,1.47361813]
[1754466461936,0.001,114220.0,114210.0,1.98614355]
[1754466462141,0.2584323,114240.0,114230.0,0.2957131]
[1754466462336,0.2584323,114240.0,114230.0,0.8961131]
[1754466462536,0.2737323,114240.0,114230.0,0.8961131]
[1754466463338,0.78625772,114240.0,114230.0,0.8961131]
[1754466463539,0.78925772,114240.0,114230.0,0.8961131]
[1754466463846,0.81052772,114240.0,114230.0,0.8961131]
[1754466464255,1.32305314,114240.0,114230.0,0.8961131]
[1754466464544,1.33204456,114240.0,114230.0,0.8961131]
[1754466464746,1.35443456,114240.0,114230.0,0.8961131]
[1754466465642,1.35543456,114240.0,114230.0,0.8961131]
[1754466467042,1.27305314,114240.0,114230.0,0.8961131]
[1754466467239,0.76052772,114240.0,114230.0,0.8961131]
[1754466467548,0.79025772,114240.0,114230.0,0.8961131]
[1754466468441,0.2757323,114240.0,114230.0,0.8961131]
[1754466468645,0.002,114240.0,114230.0,0.8961131]
[1754466468847,0.002,114240.0,114230.0,1.40863852]
[1754466469247,0.51452542,114240.0,114230.0,1.40863852]
[1754466469449,0.51452542,114240.0,114230.0,1.41759437]
[1754466470736,0.002,114240.0,114230.0,0.90506895]
[1754466474549,0.1770878,114240.0,114230.0,0.90506895]
[1754466474857,0.002,114240.0,114230.0,0.90506895]
[1754466475353,0.1770878,114240.0,114230.0,0.90506895]
[1754466477651,0.002,114240.0,114230.0,0.90506895]
[1754466478047,1.8154719,114270.0,114260.0,0.1750571]
[1754466478256,2.2485115,114270.0,114260.0,0.8912671]
[1754466479153,2.2535115,114270.0,114260.0,0.8912671]
[1754466479553,2.2759015,114270.0,114260.0,0.8912671]
[1754466480158,2.2759015,114270.0,114260.0,0.8451671]
[1754466480454,2.2789015,114270.0,114260.0,0.8912671]
[1754466481154,2.28762077,114270.0,114260.0,0.8912671]
[1754466490865,2.28762077,114270.0,114260.0,0.7991571]
[1754466491163,2.28762077,114270.0,114260.0,0.8674671]
[1754466491362,2.28762077,114270.0,114260.0,0.8767171]
[1754466491558,0.224807,114260.0,114250.0,0.3232908]
[1754466491759,0.7331266,114260.0,114250.0,0.1990125]
[1754466491961,0.7331266,114260.0,114250.0,0.6239]
[1754466493259,0.7331266,114260.0,114250.0,0.7989725]
[1754466493771,0.7381266,114260.0,114250.0,0.7989725]
[1754466495366,0.7381266,114260.0,114250.0,0.6239]
[1754466495764,0.7381266,114260.0,114250.0,0.7989724]
[1754466496166,0.7381266,114260.0,114250.0,0.8305224]
[1754466497068,0.7381266,114260.0,114250.0,0.8672824]
[1754466497770,1.3380466,114260.0,114250.0,0.8672824]
[1754466498071,1.3380466,114260.0,114250.0,0.8765324]
[1754466498663,1.3380466,114260.0,114250.0,0.8910824]
[1754466499868,0.7381266,114260.0,114250.0,0.8910824]
[1754466501773,0.7361266,114260.0,114250.0,0.8910824]
[1754466510178,0.280697,114260.0,114250.0,0.8910824]
[1754466510482,0.7361266,114260.0,114250.0,0.8910824]
[1754466514683,0.79306576,114260.0,114250.0,0.8910824]
[1754466528888,0.77067576,114260.0,114250.0,0.8910824]
[1754466537800,0.258307,114260.0,114250.0,0.8910824]
[1754466538003,0.77067576,114260.0,114250.0,0.8910824]
[1754466540304,0.69042576,114260.0,114250.0,0.8910824]
[1754466540496,0.74731576,114260.0,114250.0,0.8910824]
[1754466540801,0.76917576,114260.0,114250.0,0.8910824]
[1754466543698,0.178057,114260.0,114250.0,1.40345116]
[1754466543906,0.51536876,114260.0,114250.0,1.40345116]
[1754466544102,0.003,114260.0,114250.0,0.8910824]
[1754466544300,0.69042596,114260.0,114250.0,0.8910824]
[1754466545705,0.68942596,114260.0,114250.0,0.8910824]
[1754466547102,0.68842596,114260.0,114250.0,0.8910824]
[1754466549007,0.68842596,114260.0,114250.0,0.90013918]
[1754466550912,0.68842596,114260.0,114250.0,0.8910824]
[1754466551711,0.68842596,114260.0,114250.0,1.40345116]
[1754466551914,0.76717596,114260.0,114250.0,0.8910824]
[1754466552908,0.78956596,114260.0,114250.0,0.8910824]
[1754466560515,1.30193472,114260.0,114250.0,0.06254]
[1754466560717,0.2771972,114260.0,114250.0,0.66186]
[1754466560916,1.30193472,114260.0,114250.0,0.66186]
[1754466561122,0.78956596,114260.0,114250.0,0.69531]
[1754466561526,1.30193472,114260.0,114250.0,0.69531]
[1754466561719,0.78956596,114260.0,114250.0,0.8703824]
[1754466561911,0.78956596,114260.0,114250.0,0.8948524]
[1754466562522,1.38888596,114260.0,114250.0,0.8948524]
[1754466570931,1.90125472,114260.0,114250.0,0.8948524]
[1754466571228,1.38888596,114260.0,114250.0,0.8948524]
[1754466573531,1.90125472,114260.0,114250.0,0.8948524]
[1754466575326,1.90125472,114260.0,114250.0,0.7743924]
[1754466575532,1.38888596,114260.0,114250.0,0.8945524]
[1754466576126,0.8765172,114260.0,114250.0,0.8945524]
[1754466576330,1.38888596,114260.0,114250.0,0.8945524]
[1754466576832,1.30387596,114260.0,114250.0,0.8945524]
[1754466577034,1.31784596,114260.0,114250.0,0.8945524]
[1754466577331,1.34023596,114260.0,114250.0,0.8945524]
[1754466578434,1.34023596,114260.0,114250.0,0.8799624]
[1754466578629,0.78857596,114260.0,114250.0,0.8799624]
[1754466578934,0.78857596,114260.0,114250.0,0.8945524]
[1754466586538,0.76618596,114260.0,114250.0,0.8945524]
[1754466587135,0.78857596,114260.0,114250.0,0.8945524]
[1754466591242,0.2762072,114260.0,114250.0,0.8945524]
[1754466591446,0.69802596,114260.0,114250.0,0.8945524]
[1754466591747,0.68842596,114260.0,114250.0,0.8945524]
[1754466593345,0.69754596,114260.0,114250.0,0.8945524]
[1754466593549,0.72756596,114260.0,114250.0,0.8945524]
[1754466593935,0.74359596,114260.0,114250.0,0.8945524]
[1754466595654,0.76547596,114260.0,114250.0,0.8945524]
[1754466596655,0.78786596,114260.0,114250.0,0.8945524]
[1754466597454,0.76547596,114260.0,114250.0,0.8945524]
[1754466599952,0.76547596,114260.0,114250.0,0.91239031]
[1754466609366,0.69754596,114260.0,114250.0,0.91239031]
[1754466609762,0.72756596,114260.0,114250.0,0.91239031]
[1754466609959,0.69754596,114260.0,114250.0,0.91239031]
[1754466610163,0.68842586,114260.0,114250.0,1.42475907]
[1754466610870,0.68842586,114260.0,114250.0,0.91239031]
[1754466614366,0.1760571,114260.0,114250.0,0.91239031]
[1754466614565,0.51336876,114260.0,114250.0,1.42475907]
[1754466615173,0.001,114260.0,114250.0,1.42475907]
[1754466615371,0.51336876,114260.0,114250.0,1.42475907]